[Event "Late-Titled-Tuesday-Blitz-September-19-2023"]
[Site "Chess.com"]
[Date "2023.09.19"]
[Round "3"]
[White "BeanScreen"]
[Black "ChessWarrior7197"]
[Result "1-0"]
[WhiteElo "2725"]
[BlackElo "3061"]
[TimeControl "180+1"]
[EndTime "14:25:10 PDT"]
[Termination "BeanScreen won by resignation"]

1. e4 {[%clk 0:03:00.9]} 1... e6 {[%clk 0:03:00]} 2. d4 {[%clk 0:03:00.9]} 2...
d5 {[%clk 0:03:00.9]} 3. Nc3 {[%clk 0:03:01]} 3... Bb4 {[%clk 0:03:01]} 4. exd5
{[%clk 0:03:00.9]} 4... exd5 {[%clk 0:03:01.2]} 5. Bd3 {[%clk 0:03:01.3]} 5...
Nc6 {[%clk 0:02:59.8]} 6. Nf3 {[%clk 0:03:00.4]} 6... Nge7 {[%clk 0:02:59.5]} 7.
O-O {[%clk 0:02:59.4]} 7... Bg4 {[%clk 0:02:59.8]} 8. h3 {[%clk 0:02:58.5]} 8...
Bh5 {[%clk 0:03:00]} 9. a3 {[%clk 0:02:55.7]} 9... Bd6 {[%clk 0:02:52.2]} 10.
Re1 {[%clk 0:02:50.6]} 10... Qd7 {[%clk 0:02:45.8]} 11. Nxd5 {[%clk 0:02:48.8]}
11... O-O-O {[%clk 0:02:42.6]} 12. Nxe7+ {[%clk 0:02:45.7]} 12... Nxe7 {[%clk
0:02:35.7]} 13. Ne5 {[%clk 0:02:41.4]} 13... Bxd1 {[%clk 0:02:34.6]} 14. Nxd7
{[%clk 0:02:41.5]} 14... Bxc2 {[%clk 0:02:34.1]} 15. Nb6+ {[%clk 0:02:19]} 15...
axb6 {[%clk 0:02:32.1]} 16. Bxc2 {[%clk 0:02:19.9]} 16... c6 {[%clk 0:02:27.4]}
17. Bb3 {[%clk 0:02:14.4]} 17... Nd5 {[%clk 0:02:25.7]} 18. Bxd5 {[%clk
0:02:12.5]} 18... cxd5 {[%clk 0:02:26.6]} 19. Bg5 {[%clk 0:02:01.3]} 19... f6
{[%clk 0:02:26.2]} 20. Bh4 {[%clk 0:01:54.9]} 20... Kd7 {[%clk 0:02:24.7]} 21.
Re3 {[%clk 0:01:50]} 21... Rhe8 {[%clk 0:02:20.7]} 22. Rae1 {[%clk 0:01:43.6]}
22... Rxe3 {[%clk 0:02:20.8]} 23. Rxe3 {[%clk 0:01:43.3]} 23... Rc8 {[%clk
0:02:21.7]} 24. Bg3 {[%clk 0:01:39.5]} 24... Be7 {[%clk 0:02:13.8]} 25. Rb3
{[%clk 0:01:36.6]} 25... Bd8 {[%clk 0:02:13.6]} 26. Kf1 {[%clk 0:01:21.3]} 26...
Rc4 {[%clk 0:02:12.4]} 27. Rd3 {[%clk 0:01:17.4]} 27... b5 {[%clk 0:02:12.8]}
28. Ke2 {[%clk 0:01:16.6]} 28... Bb6 {[%clk 0:02:12.9]} 29. Rb3 {[%clk
0:01:12.8]} 29... Kc6 {[%clk 0:02:11.6]} 30. Re3 {[%clk 0:01:08]} 30... Rxd4
{[%clk 0:02:08.8]} 31. Re6+ {[%clk 0:01:02.4]} 31... Kc5 {[%clk 0:02:03.2]} 32.
b4+ {[%clk 0:01:01.2]} 32... Kc4 {[%clk 0:02:03.8]} 33. Rxb6 {[%clk 0:01:01.5]}
33... Kc3 {[%clk 0:02:01.2]} 34. Rxb5 {[%clk 0:00:58.4]} 34... Re4+ {[%clk
0:01:58]} 35. Kf3 {[%clk 0:00:57.9]} 35... Kd4 {[%clk 0:01:57]} 36. Rxb7 {[%clk
0:00:55.3]} 36... g5 {[%clk 0:01:57.6]} 37. Rxh7 {[%clk 0:00:47.2]} 37... Kd3
{[%clk 0:01:57.4]} 38. b5 {[%clk 0:00:43.3]} 38... f5 {[%clk 0:01:56.8]} 39. Rg7
{[%clk 0:00:42.7]} 39... f4 {[%clk 0:01:35.6]} 40. Rxg5 {[%clk 0:00:41.9]} 1-0

[Event "Late-Titled-Tuesday-Blitz-September-19-2023"]
[Site "Chess.com"]
[Date "2023.09.19"]
[Round "3"]
[White "KaydenTroffChess"]
[Black "The_Straightforward_Rook"]
[Result "1-0"]
[WhiteElo "2791"]
[BlackElo "2532"]
[TimeControl "180+1"]
[EndTime "14:25:10 PDT"]
[Termination "KaydenTroffChess won by resignation"]

1. d4 {[%clk 0:03:00.9]} 1... Nf6 {[%clk 0:02:59.4]} 2. Nf3 {[%clk 0:03:01.1]}
2... e6 {[%clk 0:02:58.9]} 3. Bf4 {[%clk 0:03:00]} 3... d5 {[%clk 0:02:59.1]} 4.
e3 {[%clk 0:03:00.4]} 4... Bd6 {[%clk 0:02:59.2]} 5. Ne5 {[%clk 0:03:00.3]} 5...
c5 {[%clk 0:02:57.2]} 6. Bb5+ {[%clk 0:02:58.7]} 6... Kf8 {[%clk 0:02:40.1]} 7.
Nd7+ {[%clk 0:02:16]} 7... Bxd7 {[%clk 0:02:36.1]} 8. Bxd6+ {[%clk 0:02:15]}
8... Kg8 {[%clk 0:02:36.7]} 9. Bxd7 {[%clk 0:02:14.8]} 9... Nbxd7 {[%clk
0:02:36.9]} 10. dxc5 {[%clk 0:02:12.8]} 10... Qa5+ {[%clk 0:02:28]} 11. c3
{[%clk 0:02:12.5]} 11... Qb5 {[%clk 0:02:28.6]} 12. b4 {[%clk 0:01:55.8]} 12...
a5 {[%clk 0:02:24.5]} 13. Qe2 {[%clk 0:01:52.3]} 13... Qa4 {[%clk 0:02:12.3]}
14. a3 {[%clk 0:01:43.2]} 14... Ne4 {[%clk 0:02:06]} 15. Bg3 {[%clk 0:01:32.1]}
15... Qb3 {[%clk 0:01:57.7]} 16. O-O {[%clk 0:01:29.5]} 16... Nxc3 {[%clk
0:01:56.2]} 17. Nxc3 {[%clk 0:01:28.8]} 17... Qxc3 {[%clk 0:01:57.1]} 18. Rfc1
{[%clk 0:01:26.1]} 18... Qf6 {[%clk 0:01:51.1]} 19. b5 {[%clk 0:01:25.5]} 19...
h5 {[%clk 0:01:48.6]} 20. c6 {[%clk 0:01:21.9]} 20... bxc6 {[%clk 0:01:42.2]}
21. bxc6 {[%clk 0:01:22.8]} 21... Nb6 {[%clk 0:01:33.2]} 22. Rab1 {[%clk
0:01:16.2]} 22... Nc4 {[%clk 0:01:27.4]} 23. c7 {[%clk 0:01:14.9]} 23... Rc8
{[%clk 0:01:11.9]} 24. Rb8 {[%clk 0:01:07.1]} 24... Kh7 {[%clk 0:01:09.9]} 25.
Qxh5+ {[%clk 0:01:03.3]} 25... Qh6 {[%clk 0:01:05.7]} 26. Qxf7 {[%clk
0:00:53.6]} 26... Nxe3 {[%clk 0:00:58.5]} 27. Bf4 {[%clk 0:00:51.2]} 1-0

[Event "Late-Titled-Tuesday-Blitz-September-19-2023"]
[Site "Chess.com"]
[Date "2023.09.19"]
[Round "3"]
[White "JoakimVonAnd"]
[Black "whitemirrorninja"]
[Result "1-0"]
[WhiteElo "2716"]
[BlackElo "2491"]
[TimeControl "180+1"]
[EndTime "14:25:11 PDT"]
[Termination "JoakimVonAnd won on time"]

1. d4 {[%clk 0:02:51.3]} 1... g6 {[%clk 0:02:59.8]} 2. Nf3 {[%clk 0:02:50.1]}
2... Bg7 {[%clk 0:00:06.5]} 3. g3 {[%clk 0:02:48.6]} 3... d6 {[%clk 0:00:07.1]}
4. Bg2 {[%clk 0:02:48.9]} 4... Nf6 {[%clk 0:00:07.6]} 5. O-O {[%clk 0:02:49.1]}
5... O-O {[%clk 0:00:08.5]} 6. c4 {[%clk 0:02:48.3]} 6... c6 {[%clk 0:00:09.4]}
7. Nc3 {[%clk 0:02:48.2]} 7... Nbd7 {[%clk 0:00:10.3]} 8. e4 {[%clk 0:02:44.3]}
8... Qc7 {[%clk 0:00:11.2]} 9. h3 {[%clk 0:02:44.2]} 9... e5 {[%clk 0:00:11.7]}
10. Re1 {[%clk 0:02:43.2]} 10... Re8 {[%clk 0:00:12.2]} 11. Be3 {[%clk
0:02:37.4]} 11... a6 {[%clk 0:00:12.9]} 12. Qc2 {[%clk 0:02:37.2]} 12... b6
{[%clk 0:00:12.8]} 13. Rad1 {[%clk 0:02:36.9]} 13... Bb7 {[%clk 0:00:13.3]} 14.
a3 {[%clk 0:02:28.2]} 14... Rac8 {[%clk 0:00:13.8]} 15. b4 {[%clk 0:02:26.4]}
15... b5 {[%clk 0:00:14.1]} 16. c5 {[%clk 0:02:25.2]} 16... exd4 {[%clk
0:00:14.1]} 17. cxd6 {[%clk 0:02:24.2]} 17... Qxd6 {[%clk 0:00:13.9]} 18. Nxd4
{[%clk 0:02:22.4]} 18... Qb8 {[%clk 0:00:14.6]} 19. f4 {[%clk 0:02:21.9]} 19...
Nb6 {[%clk 0:00:14.9]} 20. e5 {[%clk 0:02:17.3]} 20... Nfd5 {[%clk 0:00:14.7]}
21. Bf2 {[%clk 0:02:10.5]} 21... Nxc3 {[%clk 0:00:13.9]} 22. Qxc3 {[%clk
0:02:10.7]} 22... Nc4 {[%clk 0:00:14.8]} 23. Nb3 {[%clk 0:02:07.1]} 23... Bf8
{[%clk 0:00:13.5]} 24. Nc5 {[%clk 0:02:05.8]} 24... Rcd8 {[%clk 0:00:14]} 25.
Nd7 {[%clk 0:02:04.8]} 25... Qc7 {[%clk 0:00:13.6]} 26. Nf6+ {[%clk 0:02:04.9]}
26... Kh8 {[%clk 0:00:13.4]} 27. Nxe8 {[%clk 0:02:04.2]} 27... Rxe8 {[%clk
0:00:14.3]} 28. e6+ {[%clk 0:01:58.6]} 28... Bg7 {[%clk 0:00:14.4]} 29. exf7
{[%clk 0:01:59.1]} 29... Qxf7 {[%clk 0:00:10.9]} 30. Rxe8+ {[%clk 0:01:58.4]}
30... Qxe8 {[%clk 0:00:11.5]} 31. Bd4 {[%clk 0:01:59]} 31... Bxd4+ {[%clk
0:00:08]} 32. Qxd4+ {[%clk 0:01:59.9]} 32... Kg8 {[%clk 0:00:08.7]} 33. Qf6
{[%clk 0:01:57.5]} 33... Ne3 {[%clk 0:00:05.6]} 34. Rd8 {[%clk 0:01:56.4]} 1-0

[Event "Late-Titled-Tuesday-Blitz-September-19-2023"]
[Site "Chess.com"]
[Date "2023.09.19"]
[Round "3"]
[White "Mops_2004"]
[Black "stolencandy13"]
[Result "1-0"]
[WhiteElo "2806"]
[BlackElo "2554"]
[TimeControl "180+1"]
[EndTime "14:25:14 PDT"]
[Termination "Mops_2004 won by resignation"]

1. g3 {[%clk 0:03:00.9]} 1... d5 {[%clk 0:02:59.2]} 2. Nf3 {[%clk 0:03:00.3]}
2... Nf6 {[%clk 0:02:59.6]} 3. Bg2 {[%clk 0:03:00.5]} 3... Bf5 {[%clk
0:02:54.9]} 4. c4 {[%clk 0:02:59.2]} 4... c6 {[%clk 0:02:52.3]} 5. Qb3 {[%clk
0:02:59.2]} 5... Qb6 {[%clk 0:02:52]} 6. d3 {[%clk 0:02:58]} 6... e6 {[%clk
0:02:50.6]} 7. O-O {[%clk 0:02:58]} 7... Nbd7 {[%clk 0:02:50.4]} 8. cxd5 {[%clk
0:02:58.1]} 8... Qxb3 {[%clk 0:02:44.7]} 9. axb3 {[%clk 0:02:58]} 9... cxd5
{[%clk 0:02:44.8]} 10. Nd4 {[%clk 0:02:56.8]} 10... Bg4 {[%clk 0:02:26.7]} 11.
h3 {[%clk 0:02:56.3]} 11... Bh5 {[%clk 0:02:19.6]} 12. g4 {[%clk 0:02:55.7]}
12... Bg6 {[%clk 0:02:19.2]} 13. Nb5 {[%clk 0:02:55.7]} 13... Kd8 {[%clk
0:02:05.2]} 14. Nxa7 {[%clk 0:02:31.5]} 14... Ke8 {[%clk 0:01:59.5]} 15. Be3
{[%clk 0:02:23.5]} 15... Bc5 {[%clk 0:01:43.5]} 16. Bxc5 {[%clk 0:02:13.6]}
16... Nxc5 {[%clk 0:01:44.4]} 17. Nd2 {[%clk 0:02:13.3]} 17... Kd7 {[%clk
0:01:38.5]} 18. Rfc1 {[%clk 0:02:12.4]} 18... b6 {[%clk 0:01:18.9]} 19. b4
{[%clk 0:02:07.8]} 19... Nb7 {[%clk 0:01:17.2]} 20. Nb3 {[%clk 0:02:05.8]} 20...
Nd6 {[%clk 0:01:10.3]} 21. Nd4 {[%clk 0:01:49.3]} 21... Rhb8 {[%clk 0:01:07.3]}
22. Nac6 {[%clk 0:01:40]} 22... Rc8 {[%clk 0:01:02.6]} 23. Ne5+ {[%clk
0:01:36.9]} 23... Ke8 {[%clk 0:00:56.9]} 24. Rxa8 {[%clk 0:01:34]} 24... Rxa8
{[%clk 0:00:56.4]} 25. Rc6 {[%clk 0:01:32.9]} 25... Nc8 {[%clk 0:00:53.9]} 26.
Nb5 {[%clk 0:01:20.7]} 26... Kd8 {[%clk 0:00:46.5]} 27. Rc7 {[%clk 0:01:10.3]}
27... Ra2 {[%clk 0:00:38.8]} 28. Nc6+ {[%clk 0:01:08.5]} 28... Ke8 {[%clk
0:00:35.3]} 29. Rxc8+ {[%clk 0:01:08.6]} 29... Kd7 {[%clk 0:00:35.7]} 30. Rc7+
{[%clk 0:01:08.5]} 30... Ke8 {[%clk 0:00:33]} 31. Nd6+ {[%clk 0:01:08.7]} 31...
Kf8 {[%clk 0:00:32]} 32. Rc8+ {[%clk 0:01:09.3]} 1-0

[Event "Late-Titled-Tuesday-Blitz-September-19-2023"]
[Site "Chess.com"]
[Date "2023.09.19"]
[Round "3"]
[White "Joshukid"]
[Black "picturesquecheck"]
[Result "1-0"]
[WhiteElo "2556"]
[BlackElo "2354"]
[TimeControl "180+1"]
[EndTime "14:25:16 PDT"]
[Termination "Joshukid won by checkmate"]

1. Nf3 {[%clk 0:02:50.9]} 1... g6 {[%clk 0:02:58.5]} 2. d4 {[%clk 0:02:48.7]}
2... Bg7 {[%clk 0:02:59.4]} 3. g3 {[%clk 0:02:48.7]} 3... d6 {[%clk 0:02:58]} 4.
Bg2 {[%clk 0:02:49.6]} 4... Nf6 {[%clk 0:02:58.3]} 5. O-O {[%clk 0:02:50.5]}
5... O-O {[%clk 0:02:58]} 6. c4 {[%clk 0:02:51.4]} 6... Nc6 {[%clk 0:02:58.3]}
7. Nc3 {[%clk 0:02:52.2]} 7... Bg4 {[%clk 0:02:58.6]} 8. d5 {[%clk 0:02:52]}
8... Bxf3 {[%clk 0:02:58]} 9. exf3 {[%clk 0:02:50.1]} 9... Na5 {[%clk
0:02:58.2]} 10. Qd3 {[%clk 0:02:47.9]} 10... c5 {[%clk 0:02:58]} 11. Rb1 {[%clk
0:02:46.1]} 11... Nd7 {[%clk 0:02:56.3]} 12. f4 {[%clk 0:02:44.5]} 12... a6
{[%clk 0:02:56.4]} 13. Bd2 {[%clk 0:02:43.9]} 13... Rb8 {[%clk 0:02:56.2]} 14.
Rfe1 {[%clk 0:02:41.5]} 14... Re8 {[%clk 0:02:52.5]} 15. b3 {[%clk 0:02:37.5]}
15... b6 {[%clk 0:02:41.4]} 16. h4 {[%clk 0:02:37.5]} 16... Nb7 {[%clk 0:02:39]}
17. h5 {[%clk 0:02:35.1]} 17... Qc7 {[%clk 0:02:37.7]} 18. hxg6 {[%clk
0:02:32.6]} 18... hxg6 {[%clk 0:02:38.6]} 19. f5 {[%clk 0:02:33.2]} 19... Ne5
{[%clk 0:02:36.4]} 20. Qc2 {[%clk 0:02:25.2]} 20... gxf5 {[%clk 0:02:33.1]} 21.
f4 {[%clk 0:02:18.3]} 21... Ng6 {[%clk 0:02:25.8]} 22. Qxf5 {[%clk 0:02:16.7]}
22... Qc8 {[%clk 0:02:23.3]} 23. Qxc8 {[%clk 0:02:14.5]} 23... Rbxc8 {[%clk
0:02:22.2]} 24. Bh3 {[%clk 0:02:12.6]} 24... Rc7 {[%clk 0:02:10.7]} 25. Bf1
{[%clk 0:02:04.7]} 25... Bd4+ {[%clk 0:02:09.4]} 26. Kg2 {[%clk 0:02:03.9]}
26... Kg7 {[%clk 0:02:08.3]} 27. Na4 {[%clk 0:02:01.3]} 27... b5 {[%clk
0:02:05.2]} 28. cxb5 {[%clk 0:02:01]} 28... axb5 {[%clk 0:02:04.8]} 29. Bxb5
{[%clk 0:02:01.9]} 29... Rh8 {[%clk 0:02:01.6]} 30. Bc3 {[%clk 0:02:01.6]} 30...
Bxc3 {[%clk 0:01:57.7]} 31. Nxc3 {[%clk 0:02:02.5]} 31... Na5 {[%clk 0:01:55]}
32. Re4 {[%clk 0:01:49.6]} 32... Nb7 {[%clk 0:01:43.3]} 33. a4 {[%clk
0:01:46.4]} 33... Na5 {[%clk 0:01:40.6]} 34. Bc4 {[%clk 0:01:36.3]} 34... Rb8
{[%clk 0:01:38.7]} 35. Nb5 {[%clk 0:01:36.6]} 35... Rcc8 {[%clk 0:01:36.5]} 36.
Bd3 {[%clk 0:01:35.2]} 36... Rh8 {[%clk 0:01:34.4]} 37. Re2 {[%clk 0:01:31.2]}
37... Rh7 {[%clk 0:01:32.3]} 38. Bxg6 {[%clk 0:01:31.3]} 38... Kxg6 {[%clk
0:01:31.3]} 39. Rxe7 {[%clk 0:01:31.8]} 39... Rbh8 {[%clk 0:01:30.9]} 40. Nxd6
{[%clk 0:01:31]} 40... Rh2+ {[%clk 0:01:30.1]} 41. Kf3 {[%clk 0:01:31.6]} 41...
Rc2 {[%clk 0:01:28.9]} 42. Rxf7 {[%clk 0:01:30.8]} 42... Rhh2 {[%clk 0:01:24.3]}
43. f5+ {[%clk 0:01:30.2]} 43... Kh6 {[%clk 0:01:24.4]} 44. Rf6+ {[%clk
0:01:26.7]} 44... Kh7 {[%clk 0:01:21.7]} 45. Ne4 {[%clk 0:01:23.6]} 45... c4
{[%clk 0:01:12.5]} 46. bxc4 {[%clk 0:01:19.6]} 46... Nxc4 {[%clk 0:01:13.4]} 47.
Rb7+ {[%clk 0:01:19.4]} 47... Kg8 {[%clk 0:01:12.6]} 48. Rb8+ {[%clk 0:01:12.4]}
48... Kh7 {[%clk 0:01:03.4]} 49. Ng5+ {[%clk 0:01:12.3]} 49... Kg7 {[%clk
0:01:03.3]} 50. Rg6# {[%clk 0:01:11.7]} 1-0

[Event "Late-Titled-Tuesday-Blitz-September-19-2023"]
[Site "Chess.com"]
[Date "2023.09.19"]
[Round "3"]
[White "whiteglovethief"]
[Black "Qvalda"]
[Result "1-0"]
[WhiteElo "2513"]
[BlackElo "2335"]
[TimeControl "180+1"]
[EndTime "14:25:16 PDT"]
[Termination "whiteglovethief won by resignation"]

1. d4 {[%clk 0:03:00.9]} 1... Nf6 {[%clk 0:02:59.4]} 2. c4 {[%clk 0:03:01.5]}
2... e6 {[%clk 0:02:59.6]} 3. Nf3 {[%clk 0:03:00.1]} 3... b6 {[%clk 0:02:59.4]}
4. a3 {[%clk 0:02:59.5]} 4... Bb7 {[%clk 0:02:58.9]} 5. Nc3 {[%clk 0:02:59.8]}
5... d5 {[%clk 0:02:58.7]} 6. cxd5 {[%clk 0:03:00.1]} 6... Nxd5 {[%clk
0:02:58.5]} 7. e3 {[%clk 0:02:56.2]} 7... Be7 {[%clk 0:02:49.8]} 8. Bb5+ {[%clk
0:02:54.7]} 8... c6 {[%clk 0:02:49.1]} 9. Bd3 {[%clk 0:02:55.1]} 9... O-O {[%clk
0:02:49.3]} 10. O-O {[%clk 0:02:54.2]} 10... Nxc3 {[%clk 0:02:45.1]} 11. bxc3
{[%clk 0:02:53.5]} 11... c5 {[%clk 0:02:46]} 12. e4 {[%clk 0:02:52.6]} 12...
cxd4 {[%clk 0:02:45.7]} 13. cxd4 {[%clk 0:02:53.5]} 13... Nc6 {[%clk 0:02:44.2]}
14. Be3 {[%clk 0:02:52]} 14... Rc8 {[%clk 0:02:43.4]} 15. Qe2 {[%clk 0:02:49.4]}
15... Bf6 {[%clk 0:02:38.9]} 16. Rfd1 {[%clk 0:02:47.5]} 16... Qc7 {[%clk
0:02:12.7]} 17. e5 {[%clk 0:02:44]} 17... Be7 {[%clk 0:02:12.5]} 18. h4 {[%clk
0:02:29.2]} 18... Rfd8 {[%clk 0:02:10.4]} 19. Be4 {[%clk 0:02:16.3]} 19... Na5
{[%clk 0:02:07.1]} 20. Bg5 {[%clk 0:02:15.4]} 20... h6 {[%clk 0:01:57.1]} 21.
Bxe7 {[%clk 0:02:12.4]} 21... Qxe7 {[%clk 0:01:56]} 22. h5 {[%clk 0:02:03.4]}
22... Bxe4 {[%clk 0:01:54.5]} 23. Qxe4 {[%clk 0:02:03.2]} 23... Rc3 {[%clk
0:01:14.7]} 24. a4 {[%clk 0:02:00.2]} 24... Qb7 {[%clk 0:00:58]} 25. Qf4 {[%clk
0:01:54.4]} 25... Qd5 {[%clk 0:00:55.1]} 26. Rac1 {[%clk 0:01:49.3]} 26... Rdc8
{[%clk 0:00:53.8]} 27. Rxc3 {[%clk 0:01:49.3]} 27... Rxc3 {[%clk 0:00:54.7]} 28.
Rc1 {[%clk 0:01:47.3]} 28... Rc4 {[%clk 0:00:49.5]} 29. Rxc4 {[%clk 0:01:43]}
29... Nxc4 {[%clk 0:00:50.4]} 30. g4 {[%clk 0:01:39.1]} 30... a6 {[%clk
0:00:45.6]} 31. g5 {[%clk 0:01:38.4]} 31... hxg5 {[%clk 0:00:45.9]} 32. Nxg5
{[%clk 0:01:38.7]} 32... Qd7 {[%clk 0:00:43.1]} 33. d5 {[%clk 0:01:31.7]} 33...
exd5 {[%clk 0:00:39.8]} 34. e6 {[%clk 0:01:32]} 34... fxe6 {[%clk 0:00:38.3]}
35. Qb8+ {[%clk 0:01:30.2]} 1-0

[Event "Late-Titled-Tuesday-Blitz-September-19-2023"]
[Site "Chess.com"]
[Date "2023.09.19"]
[Round "3"]
[White "Flawless_Fighter"]
[Black "Mimsychess"]
[Result "1-0"]
[WhiteElo "2686"]
[BlackElo "2361"]
[TimeControl "180+1"]
[EndTime "14:25:20 PDT"]
[Termination "Flawless_Fighter won on time"]

1. e4 {[%clk 0:03:00.9]} 1... c6 {[%clk 0:02:53.1]} 2. d4 {[%clk 0:03:00.5]}
2... d5 {[%clk 0:02:50.7]} 3. exd5 {[%clk 0:03:01.4]} 3... cxd5 {[%clk
0:02:49.7]} 4. Bd3 {[%clk 0:03:02]} 4... Nc6 {[%clk 0:02:44.6]} 5. c3 {[%clk
0:03:01.4]} 5... Qc7 {[%clk 0:02:39]} 6. Ne2 {[%clk 0:03:00.7]} 6... Bg4 {[%clk
0:02:34.7]} 7. O-O {[%clk 0:03:00.5]} 7... Nf6 {[%clk 0:02:21.7]} 8. Qe1 {[%clk
0:02:59.1]} 8... Bxe2 {[%clk 0:02:12.2]} 9. Qxe2 {[%clk 0:02:58.9]} 9... e6
{[%clk 0:02:10]} 10. g3 {[%clk 0:02:57]} 10... Bd6 {[%clk 0:02:03.8]} 11. Nd2
{[%clk 0:02:56]} 11... O-O {[%clk 0:01:52.2]} 12. Nf3 {[%clk 0:02:54.6]} 12...
h6 {[%clk 0:01:47.8]} 13. Bd2 {[%clk 0:02:51.4]} 13... Rfe8 {[%clk 0:01:42.1]}
14. Rfe1 {[%clk 0:02:50.7]} 14... e5 {[%clk 0:01:30.3]} 15. dxe5 {[%clk
0:02:49.9]} 15... Nxe5 {[%clk 0:01:28]} 16. Nxe5 {[%clk 0:02:50]} 16... Rxe5
{[%clk 0:01:17.5]} 17. Qf3 {[%clk 0:02:47.3]} 17... Rae8 {[%clk 0:01:07.7]} 18.
Rxe5 {[%clk 0:02:43.7]} 18... Bxe5 {[%clk 0:00:57.9]} 19. Re1 {[%clk 0:02:41.9]}
19... Qd7 {[%clk 0:00:44.7]} 20. h4 {[%clk 0:02:33.9]} 20... Ne4 {[%clk
0:00:44.7]} 21. Be3 {[%clk 0:02:23.5]} 21... Re6 {[%clk 0:00:44.1]} 22. Re2
{[%clk 0:02:21.5]} 22... Rf6 {[%clk 0:00:40.6]} 23. Qg2 {[%clk 0:02:20.2]} 23...
Qg4 {[%clk 0:00:40.9]} 24. Re1 {[%clk 0:02:10.1]} 24... Nxg3 {[%clk 0:00:21.2]}
25. fxg3 {[%clk 0:02:03.2]} 25... Bxg3 {[%clk 0:00:21.2]} 26. Bd4 {[%clk
0:01:52.8]} 26... Bh2+ {[%clk 0:00:17.7]} 27. Kh1 {[%clk 0:01:37.8]} 1-0

[Event "Late-Titled-Tuesday-Blitz-September-19-2023"]
[Site "Chess.com"]
[Date "2023.09.19"]
[Round "3"]
[White "Padelator"]
[Black "ferrufino64"]
[Result "1-0"]
[WhiteElo "2393"]
[BlackElo "2194"]
[TimeControl "180+1"]
[EndTime "14:25:25 PDT"]
[Termination "Padelator won by resignation"]

1. Nf3 {[%clk 0:02:55.6]} 1... c5 {[%clk 0:02:46.7]} 2. g3 {[%clk 0:02:51.8]}
2... d6 {[%clk 0:01:57.3]} 3. Bg2 {[%clk 0:02:50.3]} 3... g6 {[%clk 0:01:58.2]}
4. O-O {[%clk 0:02:48.8]} 4... Bg7 {[%clk 0:01:59.1]} 5. e4 {[%clk 0:02:48]}
5... Nf6 {[%clk 0:02:00]} 6. Re1 {[%clk 0:02:45.8]} 6... Nc6 {[%clk 0:02:00.6]}
7. c3 {[%clk 0:02:42.6]} 7... O-O {[%clk 0:02:01]} 8. h3 {[%clk 0:02:42.5]} 8...
Rb8 {[%clk 0:02:00]} 9. d4 {[%clk 0:02:42.5]} 9... cxd4 {[%clk 0:02:00.3]} 10.
cxd4 {[%clk 0:02:42.5]} 10... d5 {[%clk 0:02:00.9]} 11. e5 {[%clk 0:02:42.3]}
11... Ne4 {[%clk 0:02:01.5]} 12. Nc3 {[%clk 0:02:41.4]} 12... Nxc3 {[%clk
0:02:01.8]} 13. bxc3 {[%clk 0:02:41.6]} 13... Bf5 {[%clk 0:01:59.6]} 14. Nh4
{[%clk 0:02:35.3]} 14... Kh8 {[%clk 0:01:57.9]} 15. Nxf5 {[%clk 0:02:33.1]}
15... gxf5 {[%clk 0:01:58.8]} 16. e6 {[%clk 0:02:33.8]} 16... fxe6 {[%clk
0:01:56.1]} 17. Rxe6 {[%clk 0:02:34.5]} 17... Rf6 {[%clk 0:01:53.6]} 18. Qe2
{[%clk 0:02:33.4]} 18... Qd7 {[%clk 0:01:53.9]} 19. Rxf6 {[%clk 0:02:26.3]}
19... Bxf6 {[%clk 0:01:54.2]} 20. Bh6 {[%clk 0:02:26.7]} 20... Rg8 {[%clk
0:01:52.9]} 21. Re1 {[%clk 0:02:25.4]} 21... Rg6 {[%clk 0:01:52.2]} 22. Bf4
{[%clk 0:02:24.3]} 22... h5 {[%clk 0:01:50]} 23. Qe6 {[%clk 0:02:24]} 23... Qxe6
{[%clk 0:01:49.6]} 24. Rxe6 {[%clk 0:02:24.9]} 24... Nd8 {[%clk 0:01:45.6]} 25.
Re1 {[%clk 0:02:18.1]} 25... e6 {[%clk 0:01:46]} 26. h4 {[%clk 0:02:01.3]} 26...
Kg8 {[%clk 0:01:34.6]} 27. Bf3 {[%clk 0:02:01.6]} 27... Bxh4 {[%clk 0:01:26.9]}
28. Bxh5 {[%clk 0:01:59.7]} 28... Rg7 {[%clk 0:01:27.3]} 29. Be5 {[%clk
0:01:29.3]} 29... Rg5 {[%clk 0:01:27.1]} 30. Bf3 {[%clk 0:01:24.3]} 30... Rg6
{[%clk 0:01:27]} 31. Bc7 {[%clk 0:01:11.9]} 31... Nc6 {[%clk 0:00:46.6]} 32.
Rxe6 {[%clk 0:01:01.5]} 32... Rxe6 {[%clk 0:00:45.7]} 33. Bxd5 {[%clk
0:01:02.2]} 33... Kf7 {[%clk 0:00:46.4]} 34. gxh4 {[%clk 0:01:02.3]} 34... Ke7
{[%clk 0:00:46.4]} 35. Bxe6 {[%clk 0:01:01.7]} 35... Kxe6 {[%clk 0:00:47.3]} 36.
h5 {[%clk 0:01:00.6]} 36... Kd5 {[%clk 0:00:46.3]} 37. h6 {[%clk 0:01:00.3]}
37... Ne7 {[%clk 0:00:46.4]} 38. h7 {[%clk 0:00:58.8]} 38... Ng6 {[%clk
0:00:46.9]} 39. Be5 {[%clk 0:00:58.6]} 1-0

[Event "Late-Titled-Tuesday-Blitz-September-19-2023"]
[Site "Chess.com"]
[Date "2023.09.19"]
[Round "3"]
[White "djano"]
[Black "RCone"]
[Result "1-0"]
[WhiteElo "2621"]
[BlackElo "2448"]
[TimeControl "180+1"]
[EndTime "14:25:27 PDT"]
[Termination "djano won on time"]

1. d4 {[%clk 0:02:53.1]} 1... g6 {[%clk 0:02:58.1]} 2. Nc3 {[%clk 0:02:50.6]}
2... d6 {[%clk 0:02:58.6]} 3. Bf4 {[%clk 0:02:49.7]} 3... Bg7 {[%clk 0:02:57.1]}
4. e4 {[%clk 0:02:49.8]} 4... Nd7 {[%clk 0:02:57.3]} 5. Nf3 {[%clk 0:02:45.8]}
5... e5 {[%clk 0:02:54.5]} 6. Bg5 {[%clk 0:02:45]} 6... Ngf6 {[%clk 0:02:52.1]}
7. Qd2 {[%clk 0:02:45.3]} 7... h6 {[%clk 0:02:49.9]} 8. Bh4 {[%clk 0:02:42.4]}
8... g5 {[%clk 0:02:30.6]} 9. Bg3 {[%clk 0:02:41.5]} 9... exd4 {[%clk 0:02:18]}
10. Nxd4 {[%clk 0:02:41]} 10... Nc5 {[%clk 0:02:03.3]} 11. O-O-O {[%clk
0:02:32.6]} 11... O-O {[%clk 0:01:55.4]} 12. f3 {[%clk 0:02:32.6]} 12... Nh5
{[%clk 0:01:41.4]} 13. Bf2 {[%clk 0:02:22.5]} 13... c6 {[%clk 0:01:29.5]} 14. h4
{[%clk 0:02:19.4]} 14... Nf4 {[%clk 0:00:57.8]} 15. hxg5 {[%clk 0:02:10.4]}
15... hxg5 {[%clk 0:00:56.4]} 16. g3 {[%clk 0:02:08.7]} 16... Ng6 {[%clk
0:00:55.6]} 17. Be3 {[%clk 0:02:07.7]} 17... g4 {[%clk 0:00:52.3]} 18. Qh2
{[%clk 0:02:06.1]} 18... Re8 {[%clk 0:00:50.6]} 19. Qh7+ {[%clk 0:02:03.1]}
19... Kf8 {[%clk 0:00:50.5]} 20. Nxc6 {[%clk 0:01:45.9]} 20... Qf6 {[%clk
0:00:14.9]} 21. Bd4 {[%clk 0:01:33.8]} 21... Ne5 {[%clk 0:00:07.5]} 22. Nxe5
{[%clk 0:01:29.6]} 22... Rxe5 {[%clk 0:00:03.4]} 23. f4 {[%clk 0:01:24.1]} 23...
Ne6 {[%clk 0:00:03]} 24. fxe5 {[%clk 0:01:22.8]} 24... dxe5 {[%clk 0:00:03.2]}
25. Be3 {[%clk 0:01:15.4]} 25... Nd4 {[%clk 0:00:03.1]} 26. Nd5 {[%clk
0:01:14.7]} 1-0